bitfinex/quotes_ETHUSD_20240722
["timestamp","ask_amount","ask_price","bid_price","bid_amount"]
[1721607707052,3.7499351,3538.1,3537.2,2.82709]
[1721607707456,3.7499351,3538.1,3537.3,0.03646908]
[1721607708210,0.37499351,3538.0,3537.0,5.1273]
[1721607708446,0.37499351,3538.0,3537.4,0.03646908]
[1721607708622,0.37499351,3538.0,3537.1,2.82716]
[1721607708827,0.37499351,3538.0,3537.5,0.03646908]
[1721607709020,0.37499351,3538.0,3537.0,2.3001]
[1721607709224,2.82655,3537.9,3537.6,0.03646908]
[1721607709453,2.82662,3537.8,3537.0,2.3001]
[1721607709946,2.82662,3537.8,3537.1,0.03646908]
[1721607710353,2.23682264,3537.7,3537.1,0.03646908]
[1721607711033,2.82672,3537.7,3537.1,0.03646908]
[1721607711241,2.82699,3537.4,3537.1,0.03646908]
[1721607711441,2.82699,3537.4,3536.6,2.3001]
[1721607711618,2.82699,3537.4,3537.2,0.03540634]
[1721607711818,2.82699,3537.4,3536.6,2.3001]
[1721607712358,2.82699,3537.4,3536.7,0.03540634]
[1721607713355,3.409452,3537.6,3536.7,0.03540634]
[1721607713356,2.82686,3537.5,3536.7,0.03540634]
[1721607714127,2.82694,3537.4,3536.7,0.03540634]
[1721607715364,2.82702,3537.3,3536.7,0.03540634]
[1721607716931,3.0,3537.2,3536.7,0.03540634]
[1721607717286,2.82731,3537.0,3536.7,0.03540634]
[1721607718669,2.82724,3537.1,3536.7,0.03540634]
[1721607718966,2.82727,3537.0,3536.7,0.03540634]
[1721607720597,2.82741,3536.8,3536.7,0.03540634]
[1721607720894,6.220288,3536.8,3536.7,0.03540634]
[1721607721052,5.65482,3536.8,3536.7,0.03540634]
[1721607721252,5.65482,3536.8,3536.3,18.59321288]
[1721607721253,2.82754,3536.7,3536.3,18.59321288]
[1721607721472,2.82758,3536.6,3536.0,2.3001]
[1721607721864,2.82741,3536.8,3536.0,2.3001]
[1721607722091,0.565467,3536.8,3536.0,2.3001]
[1721607722265,3.0,3536.8,3536.0,2.3001]
[1721607722763,2.8271,3537.2,3536.1,5.2974]
[1721607722949,3.0,3537.1,3536.1,5.2974]
[1721607723150,3.0,3537.1,3536.0,2.3001]
[1721607723355,2.82754,3536.7,3536.0,2.3001]
[1721607723653,2.82706,3537.3,3536.0,2.3001]
[1721607723654,2.82765,3536.5,3536.0,2.3001]
[1721607723993,2.82742,3536.8,3536.0,2.3001]
[1721607724783,5.4753,3537.5,3536.0,2.3001]
[1721607725049,1.4384792,3537.4,3536.0,2.3001]
[1721607725249,2.82747,3536.8,3536.0,2.3001]
[1721607725684,2.82709,3537.3,3536.0,2.3001]
[1721607725990,2.82726,3537.0,3536.0,2.3001]
[1721607726401,3.0,3536.9,3536.0,2.3001]
[1721607726693,5.82734,3536.9,3536.1,0.512817]
[1721607727267,2.82743,3536.8,3536.1,0.512817]
[1721607727479,2.82755,3536.7,3536.0,2.3001]
[1721607727674,2.82755,3536.7,3535.7,2.3001]
[1721607727859,2.82758,3536.6,3535.7,2.3001]
[1721607728087,2.82748,3536.8,3535.7,2.3001]
[1721607728275,2.82748,3536.8,3535.8,2.86167773]
[1721607728812,3.0,3536.9,3535.9,2.82812]
[1721607729010,3.0,3536.9,3536.2,2.4393]
[1721607729213,2.82718,3537.1,3536.2,5.26717]
[1721607729372,2.82718,3537.1,3536.3,0.0334817]
[1721607730217,2.82733,3536.9,3536.3,0.0334817]
[1721607730721,2.82718,3537.1,3536.3,0.0334817]
[1721607731010,3.8884792,3537.4,3536.3,0.0334817]
[1721607731011,3.0,3537.4,3536.3,0.0334817]
[1721607731184,2.82669,3537.7,3536.3,0.0334817]
[1721607731185,3.582672,3537.6,3536.3,0.0334817]
[1721607731386,2.82723,3537.1,3536.3,2.3335817]
[1721607733013,2.82702,3537.3,3536.3,5.1613917]
[1721607733329,3.0,3537.2,3536.5,2.82764]
[1721607733477,3.0,3537.4,3536.5,2.82764]
[1721607733680,3.29551409,3537.5,3536.6,0.03349957]
[1721607733909,6.12238409,3537.5,3536.6,0.03349957]
[1721607734116,2.82695,3537.4,3536.6,0.03349957]
[1721607734279,3.0,3537.3,3536.6,0.03349957]
[1721607734479,3.0,3537.3,3536.4,2.82772]
[1721607734684,3.0,3537.3,3536.7,0.03349957]
[1721607735021,3.0,3537.4,3536.8,0.03349957]
[1721607735190,0.29551409,3537.5,3537.0,2.82723]
[1721607735392,0.29551409,3537.5,3537.1,0.03343998]
[1721607736225,0.29551409,3537.5,3536.4,2.4193]
[1721607736226,2.82702,3537.3,3536.4,2.4193]
[1721607736375,3.12240409,3537.5,3536.5,0.03343998]
[1721607736580,0.29551409,3537.5,3536.5,0.03343998]
[1721607736831,2.82715,3537.2,3536.5,0.03343998]
[1721607737523,2.82695,3537.4,3536.5,0.03343998]
[1721607737730,0.29551409,3537.5,3536.6,2.82755]
[1721607737932,0.29551409,3537.5,3536.7,2.82743]
[1721607738219,0.29551409,3537.5,3536.8,2.8274]
[1721607738425,0.29551409,3537.5,3536.4,2.4193]
[1721607738426,0.29551409,3537.5,3536.9,2.86057415]
[1721607738720,0.29551409,3537.5,3537.0,5.24655]
[1721607739529,0.29551409,3537.5,3537.1,0.03325415]
[1721607739831,0.29551409,3537.5,3537.1,2.86042415]
[1721607740323,0.29551409,3537.5,3537.2,0.05653797]
[1721607740524,0.29551409,3537.5,3537.3,2.82701]
[1721607740883,0.29551409,3537.5,3537.4,0.03325415]
[1721607741430,0.29551409,3537.5,3537.1,2.82715]
[1721607741588,0.29551409,3537.5,3537.2,0.03325415]
[1721607742448,0.29551409,3537.5,3537.0,2.4193]
[1721607742449,0.29551409,3537.5,3537.3,0.03325415]
[1721607742923,0.29551409,3537.5,3536.4,2.2589]
[1721607743433,0.29551409,3537.5,3536.0,3.0]
[1721607743434,0.29551409,3537.5,3536.5,2.91743033]
[1721607743582,0.29551409,3537.5,3537.3,2.2589]
[1721607743995,0.29551409,3537.5,3537.4,0.03325415]
[1721607748260,0.29551409,3537.5,3537.4,0.03316482]
[1721607748599,0.29551409,3537.5,3536.9,2.82733]
[1721607748960,0.29551409,3537.5,3537.0,2.82723]
[1721607749097,0.29551409,3537.5,3537.0,2.86039482]
[1721607749296,0.29551409,3537.5,3537.1,2.82716]
[1721607749940,0.29551409,3537.5,3537.2,0.03316482]
[1721607751811,0.29551409,3537.5,3537.1,2.82716]
[1721607752021,0.29551409,3537.5,3537.2,0.03316482]
[1721607752541,0.29551409,3537.5,3536.8,2.4397]
[1721607752700,0.29551409,3537.5,3537.3,0.03316482]
[1721607752897,0.29551409,3537.5,3536.8,5.26709]
[1721607753102,3.12237409,3537.5,3537.4,0.03316482]
[1721607753417,3.12237409,3537.5,3536.4,2.3403]
[1721607753724,3.12237409,3537.5,3536.5,0.32606574]
[1721607754174,0.29551409,3537.5,3536.7,2.82748]
[1721607754546,0.29551409,3537.5,3536.5,3.12051092]
[1721607755039,0.29551409,3537.5,3536.6,0.0331132]
[1721607755244,0.29551409,3537.5,3536.7,2.82746]
[1721607755445,0.29551409,3537.5,3536.8,2.86053496]
[1721607756786,0.29551409,3537.5,3536.8,0.03314496]
[1721607757988,3.12236409,3537.5,3536.8,0.03314496]
[1721607758360,3.12236409,3537.5,3536.5,2.82764]
[1721607758561,3.12236409,3537.5,3536.6,2.86075261]
[1721607758895,0.29551409,3537.5,3536.7,2.82749]
[1721607759072,0.29551409,3537.5,3536.9,2.82731]
[1721607759409,0.29551409,3537.5,3536.7,2.82749]
[1721607759410,0.29551409,3537.5,3537.0,2.82724]
[1721607759710,0.29551409,3537.5,3537.1,0.0331946]
[1721607760171,0.29551409,3537.5,3536.8,2.8274]
[1721607760530,0.29551409,3537.5,3536.9,0.0331946]
[1721607761208,3.12238409,3537.5,3537.0,0.03317673]
[1721607761409,2.426,3537.4,3536.0,2.4646]
[1721607761610,2.426,3537.4,3536.1,0.03318665]
[1721607761611,2.82718,3537.1,3536.1,0.03318665]
[1721607761909,2.82756,3536.7,3535.6,2.4646]
[1721607762110,2.82756,3536.7,3536.2,0.03207818]
[1721607762272,2.82779,3536.4,3535.4,4.3033188]
[1721607762475,5.65558,3536.4,3536.3,0.03207818]
[1721607762783,2.4956,3536.9,3535.2,2.4629]
[1721607762784,2.82765,3536.5,3535.2,2.4629]
[1721607762982,2.82765,3536.5,3535.3,0.24629]
[1721607763203,2.82765,3536.5,3535.3,0.27845357]
[1721607763204,3.0,3536.4,3535.3,0.27845357]
[1721607763410,2.8279,3536.2,3535.3,0.27845357]
[1721607763572,3.0,3536.4,3535.3,0.27845357]
[1721607763573,2.82798,3536.1,3535.3,0.03216357]
[1721607764329,5.82773,3536.4,3535.3,0.03216357]
[1721607764677,3.0,3536.4,3535.4,2.82851]
[1721607765018,3.0,3536.4,3535.5,0.03233242]
[1721607765019,2.82773,3536.4,3535.5,0.03233242]
[1721607765174,0.63214146,3536.4,3535.5,2.86077242]
[1721607765371,5.82761,3536.6,3535.5,2.86077242]
[1721607765372,5.82759,3536.6,3535.5,0.03233242]
[1721607765695,3.0,3536.6,3535.5,0.03233242]
[1721607765873,5.8275,3536.7,3535.7,2.82828]
[1721607766271,5.8275,3536.7,3535.8,0.0323205]
[1721607766609,3.0,3536.7,3535.8,0.0323205]
[1721607766810,0.832301,3536.6,3535.5,2.82842]
[1721607767187,0.832301,3536.6,3535.6,2.86063467]
[1721607767520,5.82751,3536.7,3535.7,2.82828]
[1721607767716,3.0,3536.7,3535.8,2.8282]
[1721607767889,3.0,3536.7,3536.0,2.82802]
[1721607768224,2.4956,3536.9,3536.0,2.82802]
[1721607768225,5.4956,3536.9,3536.0,2.82802]
[1721607768386,2.4956,3536.9,3535.8,2.8282]
[1721607768604,3.0,3536.8,3536.1,0.03229467]
[1721607768793,3.0,3536.8,3536.2,0.03229467]
[1721607769113,2.4956,3536.9,3536.0,2.82804]
[1721607769279,2.4956,3536.9,3536.3,0.03229467]
[1721607769596,2.82742,3536.8,3536.4,0.03229467]
[1721607769794,3.942547,3536.7,3536.4,0.03229467]
[1721607769994,3.942547,3536.7,3535.7,2.82826]
[1721607769995,1.115027,3536.7,3535.7,2.82826]
[1721607770197,2.82757,3536.6,3535.5,2.82841]
[1721607770411,2.82782,3536.3,3535.8,0.03121875]
[1721607770569,2.82782,3536.3,3535.3,2.82853]
[1721607770976,2.82782,3536.3,3535.4,0.03144245]
[1721607772219,3.39336,3536.3,3535.4,0.03144245]
[1721607772513,2.8279,3536.2,3535.4,0.03144245]
[1721607772906,2.8279,3536.2,3535.2,5.29157]
[1721607773085,2.8279,3536.2,3535.5,0.03144245]
[1721607773415,2.8279,3536.2,3535.6,0.03144245]
[1721607773615,2.8279,3536.2,3535.2,5.29157]
[1721607773805,2.8279,3536.2,3535.3,0.03144245]
[1721607774287,2.82804,3536.1,3535.3,0.03144245]
[1721607774487,2.82789,3536.2,3535.3,0.03144245]
[1721607774900,0.56554,3536.3,3535.3,0.03144245]
[1721607775086,2.82797,3536.1,3535.3,0.03144245]
[1721607775679,2.82774,3536.4,3535.3,0.03144245]
[1721607776578,2.82795,3536.2,3535.3,0.03144245]
[1721607777096,2.82799,3536.1,3535.3,0.03144245]
[1721607778624,2.82807,3536.0,3535.3,0.03144245]
[1721607778777,2.8279,3536.2,3535.3,0.03144245]
[1721607778986,3.0,3536.1,3535.3,0.03144245]
[1721607779498,2.82819,3535.9,3535.3,0.03144245]
[1721607780225,5.82798,3536.1,3535.3,0.03144245]
[1721607780996,2.82806,3536.0,3535.3,0.03144245]
[1721607781201,2.82827,3535.8,3535.3,0.03144245]
[1721607781440,3.0,3535.9,3535.3,0.03144245]
[1721607781607,3.0,3535.9,3535.4,0.03164483]
[1721607781792,3.693646,3536.0,3534.8,2.82901]
[1721607782149,2.82846,3535.5,3534.9,0.03164483]
[1721607782324,2.82831,3535.7,3534.9,0.03164483]
[1721607782492,0.582831,3535.6,3534.7,2.2836]
[1721607782693,0.582831,3535.6,3535.0,0.03164483]
[1721607782907,0.582831,3535.6,3534.7,1.4236]
[1721607783107,0.582831,3535.6,3535.1,0.03164483]
[1721607783108,3.411251,3535.6,3535.1,0.03164483]
[1721607783308,3.411251,3535.6,3534.7,1.4236]
[1721607783309,3.411251,3535.6,3534.7,4.25268]
[1721607783844,3.0,3535.9,3535.1,2.82873]
[1721607784061,2.3671,3536.5,3535.1,2.82873]
[1721607784062,3.0,3536.3,3535.1,2.82873]
[1721607784225,2.82811,3536.0,3535.2,0.03175001]
[1721607784427,5.82816,3535.9,3535.0,2.82883]
[1721607784771,3.0,3535.9,3535.1,0.03170635]
[1721607784940,3.0,3536.1,3535.1,0.03170635]
[1721607785257,0.58279,3536.0,3535.1,0.03170635]
[1721607785459,3.4109,3536.0,3535.1,0.03170635]
[1721607785664,3.0,3535.9,3535.1,0.03170635]
[1721607786016,3.0,3535.9,3534.8,2.829]
[1721607786017,5.82814,3535.9,3534.8,2.829]
[1721607786262,2.82822,3535.8,3534.9,0.03169444]
[1721607786466,0.641101,3535.7,3534.7,1.4236]
[1721607786761,3.469391,3535.7,3534.8,0.03169841]
[1721607788445,2.82838,3535.6,3534.8,0.03169841]
[1721607789161,0.641101,3535.7,3534.8,0.03169841]
[1721607789522,0.641101,3535.7,3534.7,1.4236]
[1721607789860,2.82825,3535.8,3534.9,2.82892]
[1721607790223,3.0,3535.9,3535.0,0.03170635]
[1721607790429,3.0,3535.9,3535.0,2.82879]
[1721607790658,3.0,3535.9,3535.1,2.86047635]
[1721607790822,3.0,3536.0,3535.1,2.86041635]
[1721607791041,6.410861,3536.0,3535.1,2.86041635]
[1721607791340,6.410861,3536.0,3535.1,0.03170635]
[1721607791341,3.582801,3536.0,3535.1,0.03170635]
[1721607791761,6.410861,3536.0,3535.1,2.82876]
[1721607792151,6.410861,3536.0,3535.2,0.03170635]
[1721607792533,2.82815,3535.9,3535.2,0.03170635]
[1721607792740,3.9238921,3535.8,3535.2,0.03170635]
[1721607792928,3.9238921,3535.8,3535.0,2.82884]
[1721607793261,6.7521221,3535.8,3535.1,0.03176188]
[1721607793459,6.7521221,3535.8,3534.8,2.82901]
[1721607793619,6.7521221,3535.8,3534.9,0.03176188]
[1721607793819,3.84458831,3535.7,3534.9,0.03176188]
[1721607794721,1.01629831,3535.7,3535.0,2.82883]
[1721607794961,5.82815,3535.9,3535.0,2.82883]
[1721607795351,5.82815,3535.9,3535.1,0.03176188]
[1721607796077,3.0,3535.9,3535.1,2.86052188]
[1721607796229,0.582801,3536.0,3535.1,2.86052188]
[1721607796665,3.582801,3536.0,3535.1,2.86052188]
[1721607796876,0.9410791,3535.9,3535.1,2.86052188]
[1721607797169,0.9410791,3535.9,3535.1,0.03176188]
[1721607798072,3.7692191,3535.9,3535.1,0.03176188]
[1721607798244,3.0,3535.8,3535.1,0.03176188]
[1721607799342,3.0,3535.8,3535.1,2.86052188]
[1721607799545,0.9410791,3535.9,3535.2,2.82866]
[1721607799744,3.0,3536.1,3535.2,2.82866]
[1721607800052,3.0,3536.1,3535.3,0.03176188]
[1721607800382,5.82799,3536.1,3535.3,0.03176188]
[1721607800883,5.82799,3536.1,3535.4,0.03176188]
[1721607801055,5.82799,3536.1,3535.1,10.12876]
[1721607801385,0.582799,3536.0,3535.2,0.03176188]
[1721607801566,0.582799,3536.0,3535.3,2.82861]
[1721607801770,5.19478,3536.5,3535.5,2.82837]
[1721607801961,2.82768,3536.5,3535.5,2.82837]
[1721607802144,3.67271857,3536.6,3535.6,2.86006831]
[1721607802501,0.29553857,3536.6,3536.0,2.2645]
[1721607802781,0.29553857,3536.6,3536.2,2.82782]
[1721607803158,0.29553857,3536.6,3536.1,2.82796]
[1721607803342,0.29553857,3536.6,3536.3,0.03169244]
[1721607803690,0.29553857,3536.6,3536.4,0.0315615]
[1721607804074,0.29553857,3536.6,3536.2,2.82783]
[1721607804319,0.29553857,3536.6,3536.0,5.09254]
[1721607804320,0.29553857,3536.6,3536.3,0.03155753]
[1721607804901,0.29553857,3536.6,3536.0,5.09254]
[1721607804902,0.29553857,3536.6,3536.4,0.03155753]
[1721607805309,0.29553857,3536.6,3536.2,2.82788]
[1721607805613,0.29553857,3536.6,3536.5,2.85920753]
[1721607805902,2.82654,3537.9,3536.7,2.82748]
[1721607806212,2.82654,3537.9,3536.5,2.328]
[1721607806213,3.50944364,3538.1,3536.6,7.3]
[1721607806455,1.77635963,3538.6,3536.6,7.3]
[1721607806456,4.00903364,3538.4,3537.4,2.82692]
[1721607806577,2.82619,3538.4,3537.4,2.82692]
[1721607806915,2.82654,3537.9,3536.6,7.3]
[1721607807069,2.82654,3537.9,3537.5,0.0314544]
[1721607807267,3.22761836,3537.8,3536.6,10.12754]
[1721607807479,2.82669,3537.7,3536.7,0.0314544]
[1721607808098,5.82679,3537.6,3536.7,0.0314544]
[1721607808269,2.82688,3537.5,3536.7,0.0314544]
[1721607808475,2.82702,3537.3,3536.7,0.0314544]
[1721607808788,0.282702,3537.2,3536.7,0.0314544]
[1721607808993,2.82741,3536.8,3536.7,0.0314544]
[1721607809327,2.82749,3536.7,3536.1,7.3]
[1721607809525,2.82761,3536.6,3536.1,7.3]
[1721607809884,2.82744,3536.8,3536.1,7.3]
[1721607810104,2.4121,3536.9,3536.1,7.3]
[1721607810324,0.823943,3536.8,3536.1,7.3]
[1721607810995,3.0,3537.1,3536.1,7.3]
[1721607811200,2.82734,3536.9,3536.1,7.3]
[1721607811400,3.0,3536.8,3536.1,7.3]
[1721607811697,2.8276,3536.6,3536.1,7.3]
[1721607811889,3.0,3536.8,3536.1,7.3]
[1721607812088,2.82714,3537.2,3536.1,7.3]
[1721607812089,2.82757,3536.6,3536.1,7.3]
[1721607812609,2.82783,3536.3,3536.1,7.3]
[1721607813223,3.12749,3536.7,3535.9,19.73]
[1721607813518,3.0,3536.6,3535.5,12.43894]
[1721607813722,3.0,3536.6,3535.7,2.82822]
[1721607813904,3.0,3537.0,3536.0,2.82804]
[1721607814559,5.82728,3537.0,3535.8,2.82819]
[1721607814705,2.82741,3536.8,3535.7,2.82822]
[1721607814902,3.0,3536.7,3535.7,2.82822]
[1721607815402,3.0,3536.7,3535.5,9.6105]
[1721607815742,3.0,3536.9,3535.6,2.82836]
[1721607816046,2.82751,3536.7,3535.7,2.82823]
[1721607816259,3.0,3536.6,3535.7,2.82823]
[1721607816609,3.0,3536.8,3535.7,2.82823]
[1721607817524,3.0,3536.8,3535.9,2.82807]
[1721607817741,3.0,3537.0,3535.9,2.82807]
[1721607817904,0.582721,3536.9,3535.9,2.82807]
[1721607818102,0.582721,3536.9,3536.0,0.03144245]
[1721607818616,3.410071,3536.9,3536.0,0.03144245]
[1721607818937,3.410071,3536.9,3535.6,2.82837]
[1721607819155,3.0,3536.8,3536.1,0.03144245]
[1721607819305,3.0,3536.8,3535.6,2.82837]
[1721607819306,0.6410071,3536.7,3535.6,2.82837]
[1721607819506,0.6410071,3536.7,3536.2,0.03144245]
[1721607819746,0.6410071,3536.7,3535.6,2.82837]
[1721607820042,0.6410071,3536.7,3535.7,2.82823]
[1721607820259,0.6410071,3536.7,3535.7,2.85967245]
[1721607820413,0.70511381,3536.6,3535.7,2.85967245]
[1721607821418,0.6410071,3536.7,3535.7,2.85972245]
[1721607821620,3.0,3536.9,3536.0,2.82804]
[1721607822013,2.82719,3537.1,3536.1,0.03142261]
[1721607822014,0.29552709,3536.8,3536.1,0.03142261]
[1721607822551,0.29552709,3536.8,3535.9,2.82811]
[1721607822840,0.29552709,3536.8,3536.2,0.03142261]
[1721607823056,0.29552709,3536.8,3536.3,0.03142261]
[1721607823427,0.29552709,3536.8,3536.0,2.82804]
[1721607823724,0.29552709,3536.8,3536.1,2.82796]
[1721607823923,0.29552709,3536.8,3536.1,2.85938261]
[1721607824454,0.29552709,3536.8,3536.1,0.03142261]
[1721607824626,0.31228971,3536.7,3536.1,0.03142261]
[1721607824809,0.31228971,3536.7,3535.5,9.6105]
[1721607825010,2.82757,3536.6,3536.2,0.03142261]
[1721607825253,3.12294709,3536.8,3535.5,9.6105]
[1721607825408,3.0,3536.7,3535.7,2.82827]
[1721607825909,3.0,3536.7,3535.8,0.03138094]
[1721607826305,2.82763,3536.6,3535.8,0.03138094]
[1721607826524,0.89506771,3536.5,3535.6,2.82836]
[1721607826711,0.89506771,3536.5,3535.9,0.03138094]
[1721607826932,0.89506771,3536.5,3535.6,2.82836]
[1721607827130,0.89506771,3536.5,3536.0,0.03138094]
[1721607827337,0.89506771,3536.5,3535.6,2.82836]
[1721607827533,0.89506771,3536.5,3536.1,0.03139483]
[1721607827741,0.89506771,3536.5,3535.6,2.82836]
[1721607827934,0.89506771,3536.5,3536.2,0.03140276]
[1721607828140,0.67226977,3536.4,3535.6,2.82836]
[1721607828323,0.89506771,3536.5,3535.6,2.82836]
[1721607828851,0.89506771,3536.5,3535.7,0.03140276]
[1721607831217,2.82774,3536.4,3535.7,0.03140276]
[1721607831735,2.82774,3536.4,3535.8,0.03140276]
[1721607832136,2.82774,3536.4,3535.5,12.43895]
[1721607832453,3.78277977,3536.4,3535.9,0.03140276]
[1721607832651,2.82782,3536.3,3535.5,9.6105]
[1721607832875,2.82791,3536.2,3535.5,7.3]
[1721607833052,3.78284977,3536.4,3535.5,7.3]
[1721607833369,2.82783,3536.3,3535.6,0.03140276]
[1721607834120,2.82801,3536.1,3535.6,0.03140276]
[1721607834350,2.82807,3536.0,3535.6,0.03140276]
[1721607834925,2.82796,3536.2,3535.6,0.03140276]
[1721607834926,2.82814,3535.9,3535.6,0.03140276]
[1721607835347,2.82814,3535.9,3535.1,9.7334]
[1721607835545,2.82801,3536.1,3535.7,0.03140276]
[1721607835759,3.4828722,3536.1,3535.1,9.7334]
[1721607835951,2.3181,3536.5,3535.1,9.7334]
[1721607835952,2.82806,3536.0,3535.8,0.03140276]
[1721607836266,2.82806,3536.0,3535.1,9.7334]
[1721607836579,2.82806,3536.0,3535.2,0.03140276]
[1721607837464,2.3181,3536.5,3535.2,2.86009276]
[1721607837465,2.82798,3536.1,3535.2,2.86009276]
[1721607838771,2.82774,3536.4,3535.3,2.82859]
[1721607838969,2.82759,3536.6,3535.3,2.82859]
[1721607839133,3.0,3536.5,3535.4,0.03154958]
[1721607839569,2.82782,3536.3,3535.4,2.86006958]
[1721607841241,3.0,3536.7,3535.4,0.03154958]
[1721607841441,2.82793,3536.2,3535.4,0.03154958]
[1721607841875,2.82793,3536.2,3535.3,2.8286]
[1721607842260,2.82793,3536.2,3535.4,0.03154759]
[1721607842585,2.82778,3536.4,3535.5,2.82845]
[1721607842785,2.82782,3536.3,3535.4,2.86006759]
[1721607843080,3.0,3536.6,3535.6,2.3802]
[1721607843298,0.29552709,3536.8,3536.0,2.82802]
[1721607843491,0.29552709,3536.8,3536.3,2.82773]
[1721607843775,0.29552709,3536.8,3536.2,2.3802]
[1721607843983,0.29552709,3536.8,3536.4,0.03153768]
[1721607844182,2.82751,3536.7,3535.9,7.3]
[1721607844343,2.82751,3536.7,3536.5,0.03153768]
[1721607844543,3.42254771,3536.7,3535.9,7.3]
[1721607844774,0.29552709,3536.8,3536.6,0.03153768]
[1721607845038,0.29552709,3536.8,3535.9,7.3]
[1721607845254,3.12293709,3536.8,3535.9,10.12807]
[1721607845645,5.24637,3536.7,3536.0,0.03153768]
[1721607845983,2.82782,3536.3,3536.0,0.03153768]
[1721607846284,3.693367,3536.3,3536.0,0.03153768]
[1721607846487,2.82765,3536.5,3536.0,0.03153768]
[1721607846982,2.82774,3536.4,3536.0,0.03153768]
[1721607847152,2.82795,3536.2,3536.0,0.03153768]
[1721607847890,2.82776,3536.4,3536.0,0.03153768]
[1721607848961,3.0,3536.6,3536.0,0.03153768]
[1721607849150,3.0,3536.6,3535.5,22.59844]
[1721607849151,0.73081231,3536.5,3535.5,22.59844]
[1721607849353,2.82775,3536.4,3536.1,0.03146229]
[1721607849593,2.82775,3536.4,3535.5,10.12844]
[1721607849758,2.82775,3536.4,3536.2,0.03146229]
[1721607849954,2.82782,3536.3,3535.5,7.3]
[1721607850182,0.63863023,3536.2,3535.5,7.3]
[1721607850570,3.46653023,3536.2,3535.5,7.3]
[1721607850897,0.63863023,3536.2,3535.5,7.3]
[1721607852157,2.82782,3536.3,3535.5,7.3]
[1721607853101,2.8279,3536.2,3535.5,7.3]
[1721607854556,2.8279,3536.2,3535.3,5.1722]
[1721607854787,2.8279,3536.2,3535.4,2.4589111]
[1721607854974,2.8279,3536.2,3535.3,5.1722]
[1721607855300,2.8279,3536.2,3535.4,2.45889938]
[1721607855508,2.8279,3536.2,3535.3,5.1722]
[1721607855722,2.8279,3536.2,3535.4,2.45891047]
[1721607855875,2.8279,3536.2,3535.3,5.1722]
[1721607856074,2.8279,3536.2,3535.4,0.98356089]
[1721607856384,2.8279,3536.2,3535.3,5.1722]
[1721607856784,2.82798,3536.1,3535.3,2.3436]
[1721607858011,2.82787,3536.3,3535.3,5.17221]
[1721607858306,2.82792,3536.2,3535.4,0.98356394]
[1721607858617,2.82792,3536.2,3535.3,5.17221]
[1721607858990,2.82792,3536.2,3535.4,0.98356463]
[1721607859326,2.82792,3536.2,3535.3,5.17221]
[1721607859616,2.82792,3536.2,3535.4,0.98357174]
[1721607859817,2.82792,3536.2,3535.3,5.17221]
[1721607859998,2.82792,3536.2,3535.4,0.9835721]
[1721607860310,2.82792,3536.2,3535.3,5.17221]
[1721607860512,2.82792,3536.2,3535.4,0.98357675]
[1721607860699,2.82792,3536.2,3535.3,5.17221]
[1721607860873,2.82792,3536.2,3535.4,0.98356557]
[1721607861075,2.82792,3536.2,3535.3,5.17221]
[1721607861304,2.82798,3536.1,3535.3,2.3436]
[1721607861702,2.82798,3536.1,3535.4,0.98357411]
[1721607861903,2.82798,3536.1,3535.3,2.3436]
[1721607862218,2.82798,3536.1,3535.4,0.98357349]
[1721607862388,2.82798,3536.1,3535.3,2.3436]
[1721607862578,2.82798,3536.1,3535.4,0.98357044]
[1721607862771,2.82798,3536.1,3535.3,2.3436]
[1721607862976,2.82798,3536.1,3535.4,0.9835698]
[1721607863177,2.82798,3536.1,3535.4,0.03143649]
[1721607863419,2.82807,3536.0,3535.4,0.03143649]
[1721607865974,2.82813,3535.9,3535.4,0.03143649]
[1721607866490,1.18502599,3536.3,3535.2,7.3]
[1721607866713,2.2618,3536.1,3535.2,7.3]
[1721607866917,2.82818,3535.9,3535.3,0.03155354]
[1721607867431,2.82823,3535.8,3535.3,0.03155354]
[1721607867847,2.82823,3535.8,3535.2,7.3]
[1721607868332,2.82823,3535.8,3535.3,0.03155354]
[1721607868536,2.82823,3535.8,3535.2,7.3]
[1721607868851,2.82831,3535.7,3535.3,0.03155354]
[1721607869138,2.82831,3535.7,3534.8,29.85895]
[1721607869345,2.82831,3535.7,3534.9,2.49081897]
[1721607869543,2.82831,3535.7,3535.0,0.98370617]
[1721607869715,2.82831,3535.7,3534.8,27.03]
[1721607870037,2.82843,3535.6,3534.9,1.01527053]
[1721607870237,2.82843,3535.6,3534.9,0.03155354]
[1721607870551,0.4013336,3535.7,3534.9,0.03155354]
[1721607870716,3.2296336,3535.7,3534.9,0.03155354]
[1721607871118,0.4013336,3535.7,3534.9,0.03155354]
[1721607871317,3.0,3535.8,3534.9,0.03155354]
[1721607871522,3.0,3535.8,3535.0,0.98369193]
[1721607871724,3.0,3535.8,3535.1,0.03172817]
[1721607872050,3.0,3535.8,3535.3,2.4463]
[1721607872353,5.82799,3536.1,3535.4,0.03169047]
[1721607872513,7.28898248,3536.1,3535.4,0.03169047]
[1721607872714,8.47400847,3536.1,3535.4,0.03169047]
[1721607874862,5.64601847,3536.1,3535.4,0.03169047]
[1721607875931,4.46099248,3536.1,3535.4,0.03169047]
[1721607876844,5.64601847,3536.1,3535.4,0.03169047]
[1721607877625,4.46099248,3536.1,3535.4,0.03169047]
[1721607877831,3.0,3536.1,3535.4,0.03169047]
[1721607878057,3.0,3536.2,3535.4,0.03169047]
[1721607879825,5.82789,3536.2,3535.4,0.03169047]
[1721607880027,2.82798,3536.1,3535.4,0.03169047]
[1721607880431,3.0,3536.0,3535.4,0.03169047]
[1721607881369,5.82807,3536.0,3535.4,0.03169047]
[1721607881569,6.18062436,3536.0,3535.4,0.03169047]
[1721607882069,3.0,3536.0,3535.4,0.03169047]
[1721607882573,5.82798,3536.1,3535.4,0.03169047]
[1721607884047,2.82805,3536.0,3535.4,0.03169047]
[1721607884560,2.82815,3535.9,3535.4,0.03169047]
[1721607884776,0.865613,3535.8,3535.4,0.03169047]